fUSD/lending_fUSD_20241123
["ID","MTS","AMOUNT","RATE_DAILY","PERIOD"]
[343177502,1732404350550,-401.945637,0.000495,120]
[343177503,1732404350579,-401.945637,0.000495,120]
[343177504,1732404350608,-401.945637,0.000495,120]
[343177505,1732404350639,-401.945637,0.000495,120]
[343177506,1732404350670,-367.933032,0.000495,120]
[343177507,1732404350703,-367.933032,0.000495,120]
[343177508,1732404350734,-367.933032,0.000495,120]
[343177509,1732404350765,-367.933032,0.000495,120]
[343177510,1732404350797,-367.933032,0.000495,120]
[343177511,1732404350828,-367.933032,0.000495,120]
[343177512,1732404350860,-367.933032,0.000495,120]
[343177513,1732404350891,-367.933032,0.000495,120]
[343177514,1732404350926,-367.933032,0.000495,120]
[343177515,1732404350958,-367.933032,0.000495,120]
[343177516,1732404350988,-255.068477,0.000495,120]
[343177517,1732404351024,-255.068477,0.000495,120]
[343177518,1732404351055,-255.068477,0.000495,120]
[343177519,1732404351085,-255.068477,0.000495,120]
[343177520,1732404351115,-255.068477,0.000495,120]
[343177521,1732404351351,-255.068477,0.000495,120]
[343177522,1732404351384,-255.068477,0.000495,120]
[343177523,1732404351414,-255.068477,0.000495,120]
[343177524,1732404351445,-255.068477,0.000495,120]
[343177525,1732404351476,-255.068477,0.000495,120]
[343177526,1732404351508,-151.0,0.000495,120]
[343177527,1732404351539,-151.0,0.000495,120]
[343177528,1732404351568,-151.0,0.000495,120]
[343177529,1732404351597,-151.0,0.000495,120]
[343177530,1732404351627,-151.0,0.000495,120]
[343177531,1732404351656,-151.0,0.000495,120]
[343177532,1732404351691,-151.0,0.000495,120]
[343177533,1732404351721,-151.0,0.000495,120]
[343177534,1732404351751,-151.0,0.000495,120]
[343177535,1732404351784,-151.0,0.000495,120]
[343177536,1732404351813,-151.0,0.000495,120]
[343177537,1732404351842,-168.53536,0.000495,120]
[343177538,1732404351871,-151.0,0.000495,120]
[343177539,1732404351902,-151.0,0.000495,120]
[343177540,1732404351932,-151.0,0.000495,120]
[343177541,1732404351961,-151.0,0.000495,120]
[343177542,1732404351996,-151.0,0.000495,120]
[343177543,1732404352026,-151.0,0.000495,120]
[343177544,1732404352057,-250.315529,0.000495,120]
[343177545,1732404352089,-287.082585,0.000495,120]
[343177546,1732404352120,-287.082585,0.000495,120]
[343177547,1732404352152,-287.082585,0.000495,120]
[343177548,1732404352183,-287.082585,0.000495,120]
[343177549,1732404352213,-287.082585,0.000495,120]
[343177550,1732404352242,-287.082585,0.000495,120]
[343177551,1732404352270,-287.082585,0.000495,120]
[343177552,1732404352299,-287.082585,0.000495,120]
[343177553,1732404352327,-287.082585,0.000495,120]
[343177554,1732404352355,-287.082585,0.000495,120]
[343177555,1732404352385,-212.956824,0.000495,120]
[343177556,1732404352412,-185.690975,0.000495,120]
[343177557,1732404352442,-185.690975,0.000495,120]
[343177558,1732404352471,-185.690975,0.000495,120]
[343177559,1732404352499,-185.690975,0.000495,120]
[343177560,1732404352529,-185.690975,0.000495,120]
[343177561,1732404352558,-185.690975,0.000495,120]
[343177562,1732404352586,-185.690975,0.000495,120]
[343177563,1732404352615,-185.690975,0.000495,120]
[343177564,1732404352643,-185.690975,0.000495,120]
[343177565,1732404352675,-185.690975,0.000495,120]
[343177566,1732404352706,-171.285158,0.000495,120]
[343177567,1732404352737,-171.285158,0.000495,120]
[343177568,1732404352768,-171.285158,0.000495,120]
[343177569,1732404352797,-171.285158,0.000495,120]
[343177570,1732404352827,-171.285158,0.000495,120]
[343177571,1732404352857,-171.285158,0.000495,120]
[343177572,1732404352901,-171.285158,0.000495,120]
[343177573,1732404352939,-171.285158,0.000495,120]
[343177574,1732404352971,-171.285158,0.000495,120]
[343177575,1732404353003,-171.285158,0.000495,120]
[343177576,1732404353035,-151.0,0.000495,120]
[343177577,1732404353065,-151.0,0.000495,120]
[343177578,1732404353098,-226.541608,0.000495,120]
[343177579,1732404353129,-367.933032,0.00049588,120]
[343177580,1732404353160,-367.933032,0.00049588,120]
[343177581,1732404353193,-255.068477,0.00049588,120]
[343177582,1732404353224,-255.068477,0.00049588,120]
[343177583,1732404353254,-247.443082,0.00049588,120]
[343177584,1732404353285,-151.0,0.00049588,120]
[343177585,1732404353316,-287.082585,0.00049588,120]
[343177586,1732404353346,-287.082585,0.00049588,120]
[343177587,1732404353376,-185.690975,0.00049588,120]
[343177588,1732404353406,-185.690975,0.00049588,120]
[343177589,1732404353436,-171.285158,0.00049588,120]
[343177590,1732404353466,-171.285158,0.00049588,120]
[343177591,1732404353495,-40339.2884214,0.000496,120]
[343177592,1732404353525,-151.0,0.000496,120]
[343177593,1732404353554,-151.0,0.000496,120]
[343177594,1732404353585,-323.259615,0.000496,120]
[343177595,1732404353615,-323.259615,0.000496,120]
[343177596,1732404353644,-617.510067,0.000496,120]
[343177597,1732404353675,-617.510067,0.000496,120]
[343177598,1732404353708,-401.945637,0.000496,120]
[343177599,1732404353739,-401.945637,0.000496,120]
[343177600,1732404353769,-367.933032,0.000496,120]
[343177601,1732404353799,-367.933032,0.000496,120]
[343177602,1732404353830,-255.068477,0.000496,120]
[343177603,1732404353862,-255.068477,0.000496,120]
[343177604,1732404353892,-151.0,0.000496,120]
[343177605,1732404353923,-192.4257061,0.000496,120]
[343177609,1732404428478,150.0,0.000225,2]
[343177610,1732404428501,197.36033964,0.000225,2]
[343177611,1732404428528,14515.48508453,0.000225,2]
[343177612,1732404466772,70911.93309065,0.00028,4]
[343177613,1732404475546,58176.68445781,0.00032,5]
[343177614,1732404479040,3900.0,0.00035,7]
[343177615,1732404500788,247.0,0.0003485,2]
[343177616,1732404501090,247.0,0.0003315,2]
[343177617,1732404514330,17088.76061334,0.00022,2]
[343177635,1732404603159,4000.0,0.0002,7]
[343177660,1732404631583,-247.0,0.0003656,2]
[343177662,1732404631593,-400.0,0.00037,2]
[343177664,1732404631603,-600.0,0.00038,30]
[343177666,1732404631612,-247.0,0.0003826,2]
[343177667,1732404631622,-6697.831412,0.00038805,2]
[343177668,1732404631631,-450.0,0.00039,2]
[343177669,1732404631643,-500.0,0.00039,120]
[343177670,1732404631652,-247.0,0.0003996,2]
[343177671,1732404631663,-1129.1724,0.00039997,2]
[343177672,1732404631672,-20376.34162915,0.0004,20]
[343177695,1732404633824,-450.0,0.0004,20]
[343177696,1732404633837,-855.38,0.0004,20]
[343177697,1732404633865,-9669.77178151,0.0004,20]
[343177698,1732404633875,-1352.94,0.0004,10]
[343177699,1732404633886,-173.87525,0.00040098,2]
[343177700,1732404633898,-158.98,0.00041096,2]
[343177701,1732404633908,-154.99,0.00041096,2]
[343177702,1732404633918,-153.63,0.00041096,2]
[343177703,1732404633928,-173.18227356,0.00041096,2]
[343177704,1732404633937,-151.92,0.00041096,2]
[343177705,1732404633948,-250.0,0.00041417,120]
[343177706,1732404633958,-2529.75108767,0.0004166,2]
[343177707,1732404633969,-202.0,0.0004167,30]
[343177708,1732404633980,-247.0,0.0004167,2]
[343177709,1732404633991,-1640.48,0.00041802,2]
[343177710,1732404634002,-8900.44095869,0.00042,2]
[343177711,1732404634012,-500.0,0.00042,2]
[343177712,1732404634023,-1000.0,0.00042492,2]
[343177713,1732404634033,-289.94959813,0.00042492,2]
[343177714,1732404634045,-538.2,0.00042492,2]
[343177719,1732404637580,-989.89750586,0.00042492,2]
[343177720,1732404637618,-422.30198428,0.00042492,2]
[343177721,1732404637629,-985.0,0.00042492,2]
[343177722,1732404637786,-323.13091173,0.00042492,2]
[343177723,1732404637796,-5207.4113,0.00042548,20]
[343177724,1732404637805,-42558.0,0.0004257,30]
[343177725,1732404637815,-1944.55994,0.000429,2]
[343177726,1732404637824,-1852.42,0.00042917,2]
[343177727,1732404637833,-500.0,0.00042973,2]
[343177728,1732404637842,-500.0,0.00042973,7]
[343177729,1732404637851,-160.72119891,0.00042973,10]
[343177730,1732404637860,-103357.16202358,0.00043,120]
[343177812,1732404639561,-940.83531214,0.00043,120]
[343177813,1732404639573,-1185.74309327,0.00043,120]
[343177814,1732404639702,-629.19922676,0.00043,120]
[343177815,1732404639844,-298680.23325129,0.00043,120]
[343177828,1732404643502,-8943.70787572,0.00043,120]
[343177839,1732404645723,-256.923,0.000429,2]
[343177840,1732404645858,-68.74236659,0.000429,2]
[343177841,1732404645870,-949.37426427,0.00043,120]
[343177842,1732404645884,-3003.25737729,0.00043,120]
[343177843,1732404645899,-2233.91195515,0.00043,120]
[343177844,1732404645914,-3041.02501869,0.00043,120]
[343177849,1732404887527,-336.23565018,0.000379,2]
[343177850,1732404887573,-500.0,0.00038,30]
[343177851,1732404887624,-934.19973413,0.00038,30]
[343177852,1732404887672,-500.0,0.00039,120]
[343177853,1732404887719,-500.0,0.00039,120]
[343177854,1732404887766,-500.0,0.00042,2]
[343177855,1732404887814,-500.0,0.00042,2]
[343177856,1732404887861,-9892.79128827,0.000429,15]
[343177857,1732404887908,-325.66536651,0.000429,2]
[343177858,1732404887954,-474.07600176,0.00042973,10]
[343177859,1732404888005,-500.0,0.00042973,10]
[343177860,1732404888055,-500.0,0.00042973,2]
[343177861,1732404888103,-500.0,0.00042999,31]
[343177862,1732404888159,-360.80166103,0.00042999,31]
[343177863,1732404888204,-500.0,0.00042999,31]
[343177864,1732404888251,-188.86793762,0.00042999,31]
[343177865,1732404888417,-416361.2465605,0.00043,120]
[343177866,1732404903107,4000.0,0.0002,7]
[343177867,1732405096176,-781.891,0.000378,120]
[343177868,1732405096223,-207.84,0.00041096,2]
[343177869,1732405096276,-996.16,0.00041936,62]
[343177870,1732405096559,-173.38276711,0.00041936,62]
[343177871,1732405096610,-18597.49703883,0.000429,15]
[343177872,1732405096655,-8903.51215947,0.000429,15]
[343177873,1732405096698,-168809.44946555,0.00043,120]
[343177874,1732405096740,-29673.7528,0.00043,2]
[343177875,1732405096782,-202.0,0.0004337,30]
[343177876,1732405096829,-247.0,0.0004337,2]
[343177877,1732405096871,-183.77,0.00043624,2]
[343177878,1732405096914,-13838.3,0.00043624,30]
[343177879,1732405096958,-1010.64,0.00043786,2]
[343177880,1732405097000,-200.0,0.000438,2]
[343177881,1732405097044,-248.0,0.00043868,2]
[343177882,1732405097089,-29999.99,0.00043868,30]
[343177883,1732405097135,-150.45,0.00043875,2]
[343177884,1732405097177,-2000.0,0.00044009,2]
[343177885,1732405097222,-18597.49703878,0.00044239,15]
[343177886,1732405097266,-8903.51215943,0.00044239,15]
[343177887,1732405097308,-23506.55276181,0.0004454,2]
[343177888,1732405097351,-202.0,0.0004507,30]
[343177889,1732405097395,-247.0,0.0004507,30]
[343177890,1732405097554,-300.0,0.000452,2]
[343177891,1732405097597,-23900.0,0.00045536,2]
[343177892,1732405097640,-18597.49703878,0.00045577,15]
[343177893,1732405097683,-8903.51215943,0.00045577,15]
[343177894,1732405097726,-250.0,0.00045644,2]
[343177895,1732405097768,-194.87,0.00045742,2]
[343177896,1732405097811,-250.0,0.00045742,120]
[343177897,1732405097854,-300.0,0.00045782,2]
[343177898,1732405097897,-159.72652883,0.00045829,28]
[343177899,1732405097941,-2933.62,0.00045918,2]
[343177900,1732405097983,-404.5,0.00045929,120]
[343177901,1732405098029,-500.0,0.00045953,2]
[343177902,1732405098071,-2719.56,0.00046041,2]
[343177903,1732405098117,-1010.64,0.0004605,2]
[343177904,1732405098163,-207.84,0.00046143,2]
[343177905,1732405098207,-2751.0,0.00046171,120]
[343177906,1732405098249,-475.73,0.00046267,7]
[343177907,1732405098293,-180.62,0.00046382,2]
[343177908,1732405098339,-400.0,0.000466,2]
[343177909,1732405098380,-159.72652878,0.00046698,28]
[343177910,1732405098423,-202.0,0.0004677,30]
[343177911,1732405098595,-247.0,0.0004677,30]
[343177912,1732405098639,-183.77,0.00046852,2]
[343177913,1732405098683,-18597.49703878,0.00046916,15]
[343177914,1732405098726,-8903.51215943,0.00046916,15]
[343177915,1732405098769,-229.87,0.0004693,7]
[343177916,1732405098812,-4615.33,0.0004693,7]
[343177917,1732405098855,-300.0,0.00047152,2]
[343177918,1732405098900,-154.99,0.00047489,2]
[343177919,1732405098944,-159.72652878,0.00047567,28]
[343177920,1732405098989,-581.61,0.000476,7]
[343177921,1732405099033,-173.87525,0.00047696,2]
[343177922,1732405099080,-1000.0,0.00047803,2]
[343177923,1732405099124,-166.69,0.00047828,2]
[343177924,1732405099166,-500.0,0.000479,2]
[343177925,1732405099212,-194.87,0.0004803,2]
[343177926,1732405099258,-18597.49703878,0.00048255,15]
[343177927,1732405099306,-8903.51215943,0.00048255,15]
[343177928,1732405099352,-1883.77,0.00048284,7]
[343177929,1732405099398,-1010.64,0.00048313,2]
[343177930,1732405099442,-150.45,0.00048329,2]
[343177931,1732405099488,-159.72652878,0.00048436,28]
[343177932,1732405099655,-202.0,0.0004848,30]
[343177933,1732405099698,-247.0,0.0004848,30]
[343177934,1732405099741,-153.83,0.00048553,2]
[343177935,1732405099785,-1000.0,0.000486,17]
[343177936,1732405099829,-325.66536651,0.00048667,2]
[343177937,1732405099872,-1464.16,0.00048699,120]
[343177938,1732405099915,-2000.0,0.000487,17]
[343177939,1732405099958,-9828.67,0.000487,2]
[343177940,1732405100002,-500.0,0.00048767,30]
[343177941,1732405100047,-500.0,0.00048767,30]
[343177942,1732405100090,-500.0,0.00048767,30]
[343177943,1732405100133,-500.0,0.00048767,30]
[343177944,1732405100177,-500.0,0.00048767,30]
[343177945,1732405100223,-500.0,0.00048767,30]
[343177946,1732405100267,-500.0,0.00048767,30]
[343177947,1732405100311,-500.0,0.00048767,30]
[343177948,1732405100356,-500.0,0.00048767,30]
[343177949,1732405100401,-500.0,0.00048767,30]
[343177950,1732405100445,-500.0,0.00048767,30]
[343177951,1732405100487,-500.0,0.00048767,30]
[343177952,1732405100649,-500.0,0.00048767,30]
[343177953,1732405100695,-500.0,0.00048767,30]
[343177954,1732405100739,-500.0,0.00048767,30]
[343177955,1732405100782,-500.0,0.00048767,30]
[343177956,1732405100826,-500.0,0.00048767,30]
[343177957,1732405100870,-500.0,0.00048767,30]
[343177958,1732405100916,-208.79422655,0.00048767,30]
[343177959,1732405100962,-500.0,0.00048767,30]
[343177960,1732405101007,-836.33,0.00048767,30]
[343177961,1732405101054,-836.33,0.00048767,30]
[343177962,1732405101098,-836.33,0.00048767,30]
[343177963,1732405101146,-836.33,0.00048767,30]
[343177964,1732405101192,-836.33,0.00048767,30]
[343177965,1732405101238,-500.0,0.00048767,30]
[343177966,1732405101283,-500.0,0.00048767,30]
[343177967,1732405101328,-500.0,0.00048767,30]
[343177968,1732405101372,-500.0,0.00048767,30]
[343177969,1732405101417,-629.88,0.00048767,30]
[343177970,1732405101460,-500.0,0.00048767,30]
[343177971,1732405101504,-405.9541006,0.00048767,30]
[343177972,1732405101549,-575.72936035,0.00048767,30]
[343177973,1732405101716,-500.0,0.00048767,30]
[343177974,1732405101764,-500.0,0.00048767,30]
[343177975,1732405101811,-500.0,0.00048767,30]
[343177976,1732405101857,-500.0,0.00048767,30]
[343177977,1732405101903,-500.0,0.00048767,30]
[343177978,1732405101946,-500.0,0.00048767,30]
[343177979,1732405101990,-500.0,0.00048767,30]
[343177980,1732405102037,-500.0,0.00048767,30]
[343177981,1732405102084,-500.0,0.00048767,30]
[343177982,1732405102132,-500.0,0.00048767,30]
[343177983,1732405102177,-500.0,0.00048767,30]
[343177984,1732405102224,-500.0,0.00048767,30]
[343177985,1732405102270,-500.0,0.00048767,30]
[343177986,1732405102318,-500.0,0.00048767,30]
[343177987,1732405102364,-500.0,0.00048767,30]
[343177988,1732405102411,-500.0,0.00048767,30]
[343177989,1732405102458,-5430.42,0.00048767,30]
[343177990,1732405102504,-500.0,0.00048767,30]
[343177991,1732405102549,-1355.34,0.00048767,30]
[343177992,1732405102596,-1355.34,0.00048767,30]
[343177993,1732405102748,-1355.34,0.00048767,30]
[343177994,1732405102804,-1355.34,0.00048767,30]
[343177995,1732405102851,-1355.34,0.00048767,30]
[343177996,1732405102897,-500.0,0.00048767,30]
[343177997,1732405102942,-500.0,0.00048767,30]
[343177998,1732405102987,-500.0,0.00048767,30]
[343177999,1732405103031,-500.0,0.00048767,30]
[343178000,1732405103076,-500.0,0.00048767,30]
[343178001,1732405103121,-500.0,0.00048767,30]
[343178002,1732405103165,-500.0,0.00048767,30]
[343178003,1732405103209,-500.0,0.00048767,30]
[343178004,1732405103254,-500.0,0.00048767,30]
[343178005,1732405103298,-500.0,0.00048767,30]
[343178006,1732405103345,-500.0,0.00048767,30]
[343178007,1732405103388,-500.0,0.00048767,30]
[343178008,1732405103432,-500.0,0.00048767,30]
[343178009,1732405103473,-500.0,0.00048767,30]
[343178010,1732405103515,-500.0,0.00048767,30]
[343178011,1732405103559,-500.0,0.00048767,30]
[343178012,1732405103601,-500.0,0.00048767,30]
[343178013,1732405103645,-500.0,0.00048767,30]
[343178014,1732405103808,-500.0,0.00048767,30]
[343178015,1732405103854,-500.0,0.00048767,30]
[343178016,1732405103900,-500.0,0.00048767,30]
[343178017,1732405103945,-500.0,0.00048767,30]
[343178018,1732405103988,-500.0,0.00048767,30]
[343178019,1732405104033,-500.0,0.00048767,30]
[343178020,1732405104076,-345.59569946,0.00048767,30]
[343178021,1732405104121,-500.0,0.00048767,30]
[343178022,1732405104164,-500.0,0.00048767,30]
[343178023,1732405104210,-500.0,0.00048767,30]
[343178024,1732405104253,-500.0,0.00048767,30]
[343178025,1732405104296,-500.0,0.00048767,30]
[343178026,1732405104343,-500.0,0.00048767,30]
[343178027,1732405104388,-500.0,0.00048767,30]
[343178028,1732405104434,-500.0,0.00048767,30]
[343178029,1732405104478,-500.0,0.00048767,30]
[343178030,1732405104522,-391.66977978,0.00048767,30]
[343178031,1732405104565,-500.0,0.00048767,30]
[343178032,1732405104609,-500.0,0.00048767,30]
[343178033,1732405104653,-500.0,0.00048767,30]
[343178034,1732405104697,-500.0,0.00048767,30]
[343178035,1732405104869,-500.0,0.00048767,30]
[343178036,1732405104915,-500.0,0.00048767,30]
[343178037,1732405104962,-500.0,0.00048767,30]
[343178038,1732405105008,-500.0,0.00048767,30]
[343178039,1732405105057,-1309.54,0.00048767,30]
[343178040,1732405105103,-500.0,0.00048767,30]
[343178041,1732405105146,-500.0,0.00048767,30]
[343178042,1732405105192,-500.0,0.00048767,30]
[343178043,1732405105237,-500.0,0.00048767,30]
[343178044,1732405105282,-500.0,0.00048767,30]
[343178045,1732405105326,-500.0,0.00048767,30]
[343178046,1732405105370,-500.0,0.00048767,30]
[343178047,1732405105416,-500.0,0.00048767,30]
[343178048,1732405105462,-500.0,0.00048767,30]
[343178049,1732405105506,-506.03708327,0.00048767,30]
[343178050,1732405105552,-500.0,0.00048767,30]
[343178051,1732405105597,-500.0,0.00048767,30]
[343178052,1732405105641,-500.0,0.00048767,30]
[343178053,1732405105686,-500.0,0.00048767,30]
[343178054,1732405105730,-500.0,0.00048767,30]
[343178055,1732405105902,-500.0,0.00048767,30]
[343178056,1732405105950,-345.45558043,0.00048767,30]
[343178057,1732405105994,-500.0,0.00048767,30]
[343178058,1732405106040,-500.0,0.00048767,30]
[343178059,1732405106088,-500.0,0.00048767,30]
[343178060,1732405106135,-500.0,0.00048767,30]
[343178061,1732405106180,-500.0,0.00048767,30]
[343178062,1732405106226,-500.0,0.00048767,30]
[343178063,1732405106273,-500.0,0.00048767,30]
[343178064,1732405106320,-500.0,0.00048767,30]
[343178065,1732405106365,-500.0,0.00048767,30]
[343178066,1732405106410,-500.0,0.00048767,30]
[343178067,1732405106456,-500.0,0.00048767,30]
[343178068,1732405106500,-460.54195507,0.00048767,30]
[343178069,1732405106547,-500.0,0.00048767,30]
[343178070,1732405106595,-500.0,0.00048767,30]
[343178071,1732405106642,-500.0,0.00048767,30]
[343178072,1732405106687,-547.56,0.00048767,30]
[343178073,1732405106730,-500.0,0.00048767,30]
[343178074,1732405106773,-372.9146179,0.00048767,30]
[343178075,1732405106815,-500.0,0.00048767,30]
[343178076,1732405106992,-500.0,0.00048767,30]
[343178077,1732405107039,-500.0,0.00048767,30]
[343178078,1732405107085,-500.0,0.00048767,30]
[343178079,1732405107129,-286.22,0.00048767,30]
[343178080,1732405107173,-500.0,0.00048767,30]
[343178081,1732405107217,-500.0,0.00048767,30]
[343178082,1732405107261,-500.0,0.00048767,30]
[343178083,1732405107305,-500.0,0.00048767,30]
[343178084,1732405107349,-500.0,0.00048767,30]
[343178085,1732405107393,-500.0,0.00048767,30]
[343178086,1732405107436,-500.0,0.00048767,30]
[343178087,1732405107481,-613.86,0.00048767,30]
[343178088,1732405107523,-177.85629457,0.00048767,30]
[343178089,1732405107566,-500.0,0.00048767,30]
[343178090,1732405107608,-500.0,0.00048767,30]
[343178091,1732405107651,-339.27057863,0.00048767,30]
[343178092,1732405107692,-500.0,0.00048767,30]
[343178093,1732405107734,-500.0,0.00048767,30]
[343178094,1732405107775,-5000.0,0.0004879,120]
[343178095,1732405107819,-3004.8504,0.000488,2]
[343178096,1732405107861,-3152.2354,0.000488,2]
[343178097,1732405108031,-673.226,0.000488,2]
[343178098,1732405108074,-17048.7249,0.000488,2]
[343178099,1732405108120,-3000.0,0.000488,17]
[343178100,1732405108162,-39099.2727,0.000488,2]
[343178101,1732405108206,-151.0,0.000488,14]
[343178102,1732405108250,-3145.293271,0.000488,14]
[343178103,1732405108294,-3145.293271,0.000488,14]
[343178104,1732405108337,-151.0,0.000488,14]
[343178105,1732405108380,-151.0,0.000488,14]
[343178106,1732405108424,-151.0,0.000488,14]
[343178107,1732405108466,-151.0,0.000488,14]
[343178108,1732405108510,-151.0,0.000488,14]
[343178109,1732405108557,-156.14966454,0.000488,25]
[343178110,1732405108600,-166.83,0.00048844,2]
[343178111,1732405108642,-150.112408,0.00048898,120]
[343178112,1732405108681,-1000.0,0.00048899,2]
[343178113,1732405108724,-500.0,0.00048899,30]
[343178114,1732405108765,-500.0,0.00048899,30]
[343178115,1732405108810,-500.0,0.00048899,30]
[343178116,1732405108852,-5776.22,0.00048899,30]
[343178117,1732405109017,-497.4463595,0.00048899,30]
[343178118,1732405109062,-500.0,0.00048899,30]
[343178119,1732405109106,-500.0,0.00048899,30]
[343178120,1732405109154,-500.0,0.00048899,30]
[343178121,1732405109199,-1053.0,0.00048899,30]
[343178122,1732405109246,-500.0,0.00048899,30]
[343178123,1732405109290,-500.0,0.00048899,30]
[343178124,1732405109336,-500.0,0.00048899,30]
[343178125,1732405109380,-500.0,0.00048899,30]
[343178126,1732405109426,-500.0,0.00048899,30]
[343178127,1732405109468,-500.0,0.00048899,30]
[343178128,1732405109512,-500.0,0.00048899,30]
[343178129,1732405109556,-500.0,0.00048899,30]
[343178130,1732405109601,-500.0,0.00048899,30]
[343178131,1732405109647,-500.0,0.00048899,30]
[343178132,1732405109693,-836.33,0.00048899,30]
[343178133,1732405109738,-343.7143855,0.00048899,30]
[343178134,1732405109785,-500.0,0.00048899,30]
[343178135,1732405109830,-500.0,0.00048899,30]
[343178136,1732405109874,-500.0,0.00048899,30]
[343178137,1732405109920,-500.0,0.00048899,30]
[343178138,1732405110096,-500.0,0.00048899,30]
[343178139,1732405110148,-500.0,0.00048899,30]
[343178140,1732405110196,-500.0,0.00048899,30]
[343178141,1732405110241,-500.0,0.00048899,30]
[343178142,1732405110287,-500.0,0.00048899,30]
[343178143,1732405110336,-500.0,0.00048899,30]
[343178144,1732405110381,-500.0,0.00048899,30]
[343178145,1732405110426,-500.0,0.00048899,30]
[343178146,1732405110468,-500.0,0.00048899,30]
[343178147,1732405110513,-500.0,0.00048899,30]
[343178148,1732405110557,-500.0,0.00048899,30]
[343178149,1732405110601,-500.0,0.00048899,30]
[343178150,1732405110645,-220.15052599,0.00048899,30]
[343178151,1732405110690,-505.17864359,0.00048899,30]
[343178152,1732405110734,-554.9,0.00048899,30]
[343178153,1732405110780,-500.0,0.00048899,30]
[343178154,1732405110825,-500.0,0.00048899,30]
[343178155,1732405110870,-500.0,0.00048899,30]
[343178156,1732405110917,-500.0,0.00048899,30]
[343178157,1732405110964,-500.0,0.00048899,30]
[343178158,1732405111010,-500.0,0.00048899,30]
[343178159,1732405111192,-5430.42,0.00048899,30]
[343178160,1732405111240,-4516.46937698,0.00048899,30]
[343178162,1732405643299,250.0,0.00031,2]
[343178163,1732405647794,300.0,0.00033,2]
[343178164,1732405649765,350.0,0.00035,2]
[343178188,1732405831801,-2800.0,0.00042,120]
[343178189,1732405831811,-150.0,0.00044852,7]
[343178190,1732405831821,-859.04,0.000455,2]
[343178191,1732405831831,-150.0,0.00045849,30]
[343178192,1732405831840,-150.0,0.00046845,30]
[343178193,1732405831850,-2617.942745,0.00047,48]
[343178194,1732405831859,-250.0,0.00047239,120]
[343178195,1732405831869,-250.0,0.00047418,120]
[343178196,1732405831879,-194.87,0.00047468,2]
[343178197,1732405831889,-150.45,0.00047642,2]
[343178198,1732405831898,-183.77,0.00047685,2]
[343178199,1732405831907,-1360.9147402,0.00047751,2]
[343178200,1732405832102,-404.4999995,0.00047751,2]
[343178225,1732405832457,-6.439e-05,0.00047751,2]
[343178227,1732405832470,-22134.58519591,0.00047751,2]
[343178229,1732405832480,-859.04,0.00047764,2]
[343178231,1732405832491,-1415.54,0.00047811,2]
[343178233,1732405832500,-150.0,0.00047842,30]